bitfinex/quotes_ETHUSD_20260107
["timestamp","ask_amount","ask_price","bid_price","bid_amount"]
[1767766701314,0.95472844,3248.0,3247.5,0.00056332]
[1767766703718,3.07891252,3247.9,3247.5,0.00056332]
[1767766704521,0.95472844,3247.8,3247.5,0.00056332]
[1767766705921,4.03383057,3247.7,3247.5,0.00056332]
[1767766709799,0.95472844,3247.6,3247.1,0.002]
[1767766710198,0.95472844,3247.4,3247.1,0.002]
[1767766711936,0.95472844,3247.4,3247.0,0.002]
[1767766712226,4.05399418,3247.2,3247.0,0.002]
[1767766719526,0.97439227,3247.2,3247.0,0.002]
[1767766719823,3.07946087,3247.4,3247.0,0.002]
[1767766720232,0.97439227,3247.6,3247.0,0.002]
[1767766721828,6.15858352,3247.5,3247.0,0.002]
[1767766722020,6.8718811,3247.5,3247.0,0.002]
[1767766722611,3.79258934,3247.5,3247.0,0.002]
[1767766724008,0.001,3247.2,3247.0,0.002]
[1767766726237,0.001,3247.2,3247.0,0.90654517]
[1767766727314,0.001,3247.2,3247.0,0.002]
[1767766728336,0.97539227,3247.2,3247.0,0.002]
[1767766728518,0.97539227,3247.2,3246.6,0.002]
[1767766728705,0.97539227,3247.2,3246.3,0.002]
[1767766730005,0.97439227,3247.0,3246.3,0.002]
[1767766730207,0.97439227,3246.8,3246.3,0.002]
[1767766732632,3.08005051,3246.7,3246.3,0.002]
[1767766737834,3.03968874,3246.7,3246.3,0.002]
[1767766740139,0.97439227,3246.7,3246.3,0.002]
[1767766740817,3.07995564,3246.8,3246.3,0.002]
[1767766741737,7.09853385,3246.8,3246.3,0.002]
[1767766741920,7.87972458,3246.8,3246.3,0.002]
[1767766744334,0.93862257,3246.7,3245.9,1.75105998]
[1767766744838,4.06001546,3246.6,3245.9,0.94405998]
[1767766745540,0.97987008,3246.5,3245.9,0.002]
[1767766746639,0.97987008,3246.4,3245.9,0.002]
[1767766746827,0.71401608,3246.5,3245.6,0.002]
[1767766746828,0.97987008,3246.2,3245.6,0.002]
[1767766749127,3.08054615,3246.2,3245.7,0.99841886]
[1767766749528,3.08054615,3246.2,3245.6,0.002]
[1767766750348,3.08054615,3246.2,3245.6,1.00041886]
[1767766751849,4.77449233,3246.2,3245.6,1.00041886]
[1767766752965,1.69394618,3246.2,3245.6,1.00041886]
[1767766753124,0.97987008,3246.2,3245.6,1.00041886]
[1767766753324,4.06040798,3246.2,3245.6,1.00041886]
[1767766753737,0.97987008,3246.2,3245.6,1.00041886]
[1767766754044,4.06040395,3246.2,3245.6,1.00041886]
[1767766754335,3.0804652,3246.3,3245.6,1.00041886]
[1767766754641,3.0804652,3246.3,3245.6,1.0312298]
[1767766755617,0.001,3246.5,3245.6,1.00041886]
[1767766755823,4.05956437,3247.1,3246.1,0.99841886]
[1767766756022,4.05956437,3247.1,3246.2,0.99841886]
[1767766756964,0.001,3247.2,3246.2,0.99841886]
[1767766756965,3.08058769,3247.2,3246.2,0.99841886]
[1767766757124,0.001,3247.2,3246.2,0.99841886]
[1767766757326,0.001,3247.2,3246.4,0.99841886]
[1767766757722,0.001,3247.2,3246.5,0.99841886]
[1767766758572,0.001,3247.2,3246.7,0.99841886]
[1767766770298,0.001,3246.9,3246.7,0.99841886]
[1767766770504,0.97987008,3247.5,3246.6,0.807]
[1767766771399,0.97987008,3247.5,3246.6,1.29557364]
[1767766771924,0.97987008,3247.5,3246.6,4.37570078]
[1767766772404,0.90427354,3247.4,3246.6,4.37570078]
[1767766773024,0.90427354,3247.4,3246.6,1.29557364]
[1767766773899,3.07935867,3247.5,3246.7,0.93269018]
[1767766774616,3.98363221,3247.5,3246.7,0.93269018]
[1767766775222,0.90427354,3247.4,3246.7,0.93269018]
[1767766777014,3.07948141,3247.3,3246.7,0.93269018]
[1767766777218,3.07894439,3247.9,3246.7,0.93269018]
[1767766777219,0.90427354,3248.2,3247.1,0.93269018]
[1767766778116,0.90427354,3248.1,3247.1,0.93269018]
[1767766778415,0.90427354,3247.9,3247.1,0.93269018]
[1767766778616,0.90427354,3247.9,3246.8,0.93269018]
[1767766778816,0.90427354,3247.7,3246.8,1.62903188]
[1767766781432,0.90427354,3247.5,3246.8,1.62903188]
[1767766781638,0.90427354,3247.5,3246.8,0.93269018]
[1767766784742,3.07938658,3247.4,3246.8,0.93269018]
[1767766787863,0.90427354,3247.3,3246.0,0.93269018]
[1767766788069,0.90427354,3247.3,3246.4,4.01299509]
[1767766788355,0.90427354,3247.3,3246.5,0.93269018]
[1767766788553,0.90427354,3247.3,3246.5,1.33398969]
[1767766788751,0.90427354,3247.3,3246.3,0.93269018]
[1767766788950,0.90427354,3247.2,3246.1,0.807]
[1767766790052,0.90427354,3247.0,3245.6,0.002]
[1767766790252,0.90427354,3247.0,3245.7,3.8879748]
[1767766790452,0.90427354,3247.0,3245.9,3.08075574]
[1767766790661,0.90427354,3246.9,3246.0,3.11148985]
[1767766791156,0.90427354,3246.9,3246.0,3.08068271]
[1767766791741,0.90427354,3246.8,3246.0,3.08068271]
[1767766792733,0.90427354,3246.8,3246.1,0.03080619]
[1767766793668,0.90427354,3246.8,3246.4,0.002]
[1767766793966,0.90427354,3246.7,3246.4,0.002]
[1767766795147,3.54904005,3246.8,3246.4,0.002]
[1767766796543,4.45333509,3246.8,3246.4,0.002]
[1767766800879,0.46905236,3246.8,3246.4,0.9365501]
[1767766801061,3.08062318,3247.2,3246.4,0.9365501]
[1767766801265,0.001,3247.2,3246.4,0.9365501]
[1767766801446,0.001,3247.2,3246.7,0.9345501]
[1767766801846,0.001,3247.2,3246.8,0.94963758]
[1767766802066,4.0053176,3247.6,3246.9,1.12530134]
[1767766802461,7.08455127,3247.6,3246.9,1.12530134]
[1767766802665,4.0053176,3247.6,3246.9,1.12530134]
[1767766803253,3.07923367,3247.6,3246.9,1.12530134]
[1767766805258,4.04309696,3247.7,3246.9,1.12530134]
[1767766806056,0.001,3247.3,3246.9,1.12530134]
[1767766806453,0.001,3247.3,3247.0,0.94963758]
[1767766806652,0.96399483,3247.7,3247.1,0.42051612]
[1767766807187,0.96399483,3247.7,3246.9,0.17566376]
[1767766807700,0.96399483,3247.6,3246.9,0.17566376]
[1767766808078,0.96399483,3247.6,3246.9,3.25552153]
[1767766808283,0.96399483,3247.6,3246.9,3.07985777]
[1767766808812,4.04403719,3247.8,3247.0,0.94963758]
[1767766813836,4.03799266,3247.8,3247.0,0.94963758]
[1767766817842,4.03799266,3247.8,3247.2,0.002]
[1767766818030,0.96399483,3247.7,3247.2,0.002]
[1767766818233,0.001,3247.5,3247.2,0.002]
[1767766830330,0.001,3247.5,3247.2,0.95163758]
[1767766830536,0.96399483,3248.1,3247.5,0.002]
[1767766830734,0.96399483,3248.1,3247.5,1e-08]
[1767766830949,4.04277947,3248.1,3247.5,1e-08]
[1767766831125,0.96399483,3248.0,3247.5,1e-08]
[1767766835049,3.07865926,3248.2,3247.5,1e-08]
[1767766835250,4.0605408,3248.2,3247.5,1e-08]
[1767766836149,0.98188154,3248.1,3247.5,1e-08]
[1767766836849,3.07865926,3248.2,3247.5,0.92707979]
[1767766837051,4.0605408,3248.2,3247.5,0.92707979]
[1767766838889,0.98188154,3248.1,3247.5,0.92707979]
[1767766839581,0.98188154,3248.1,3247.5,1e-08]
[1767766839956,0.98188154,3248.0,3247.5,1e-08]
[1767766842797,0.98188154,3247.8,3247.5,1e-08]
[1767766842974,0.98188154,3247.6,3247.5,1e-08]
[1767766845178,0.001,3247.7,3247.5,1e-08]
[1767766854783,0.98188154,3248.1,3247.5,1e-08]
[1767766856309,0.97955048,3248.1,3247.5,1e-08]
[1767766857410,0.97955048,3248.1,3247.5,0.40065042]
[1767766859432,3.07944132,3248.4,3247.5,1.30727469]
[1767766859433,0.92170438,3248.3,3247.5,1.30727469]
[1767766859632,0.92170438,3248.3,3247.6,0.90662427]
[1767766863595,4.00026267,3248.3,3247.6,0.90662427]
[1767766864621,0.92170438,3248.3,3247.6,3.98576108]
[1767766864829,0.92170438,3248.3,3247.7,1.45549351]
[1767766865421,0.92170438,3248.3,3247.7,4.5345508]
[1767766865731,0.001,3248.4,3247.8,0.93307307]
[1767766865934,0.9543615,3248.6,3248.0,0.93307307]
[1767766866428,4.03247522,3248.8,3248.0,0.93307307]
[1767766866799,0.9543615,3248.7,3248.0,1.74007307]
[1767766867004,0.9543615,3248.7,3248.1,0.17400731]
[1767766868406,0.9543615,3248.9,3248.1,4.18578775]
[1767766869094,0.9543615,3248.9,3248.2,0.93307307]
[1767766869904,0.9543615,3249.1,3248.3,4.01160645]
[1767766870329,0.9543615,3249.1,3248.3,0.93307307]
[1767766870625,0.9543615,3249.1,3248.3,1.65951078]
[1767766870806,0.9543615,3249.1,3248.4,0.93307307]
[1767766872605,0.9543615,3249.1,3248.4,1.74007307]
[1767766873211,0.9543615,3249.1,3248.4,4.81848835]
[1767766874821,0.9543615,3249.1,3248.4,1.74007307]
[1767766875124,0.9543615,3249.1,3248.5,0.48186062]
[1767766875807,0.9543615,3249.3,3248.6,0.93307307]
[1767766878156,0.001,3248.8,3248.6,0.93307307]
[1767766878310,0.9543615,3249.3,3248.5,3.56016972]
[1767766878945,0.9543615,3249.3,3248.6,3.07824061]
[1767766879146,0.9543615,3249.3,3248.7,0.35601012]
[1767766880162,0.9543615,3249.9,3248.9,0.93307307]
[1767766880451,0.9543615,3249.9,3248.7,0.35601012]
[1767766880628,0.9543615,3249.9,3249.0,0.807]
[1767766880809,0.9543615,3249.9,3248.7,3.07811541]
[1767766881014,0.9543615,3249.9,3248.8,0.807]
[1767766881727,0.9543615,3249.9,3248.9,0.93307307]
[1767766882447,0.9543615,3249.8,3249.0,0.93307307]
[1767766882646,0.9543615,3249.8,3249.1,0.93307307]
[1767766882840,4.03131402,3250.0,3249.1,0.93307307]
[1767766884545,4.03129441,3250.0,3249.2,0.93307307]
[1767766884735,4.03129441,3250.0,3249.0,0.48180213]
[1767766884736,0.9543615,3250.2,3249.3,0.807]
[1767766884936,0.9543615,3250.1,3249.3,0.807]
[1767766885728,0.9543615,3250.1,3249.3,1.74007307]
[1767766885926,0.9543615,3250.1,3249.1,7.08857998]
[1767766886130,0.9543615,3250.1,3249.2,0.807]
[1767766886336,0.9543615,3250.1,3249.3,4.01065275]
[1767766886634,0.9543615,3250.1,3249.4,0.48176528]
[1767766886969,0.9543615,3250.1,3249.5,0.807]
[1767766888649,0.9543615,3250.1,3249.4,0.48176528]
[1767766889035,0.9543615,3250.1,3249.5,3.88439451]
[1767766890054,0.002,3249.8,3249.5,3.88439451]
[1767766890255,0.9543615,3250.5,3249.6,0.74436371]
[1767766890450,0.9543615,3250.5,3249.6,3.82163116]
[1767766890856,0.9543615,3250.5,3249.7,0.807]
[1767766891039,0.9543615,3250.4,3249.7,0.807]
[1767766892741,0.9543615,3250.4,3249.7,3.88419087]
[1767766892938,0.9543615,3250.4,3249.8,0.38841909]
[1767766894255,0.97678012,3250.6,3249.8,0.38841909]
[1767766894553,7.57950119,3251.3,3249.8,0.38841909]
[1767766894554,0.97678012,3250.5,3249.8,0.38841909]
[1767766894761,0.97678012,3250.5,3249.7,3.91496294]
[1767766894762,0.97678012,3250.5,3249.7,4.81859295]
[1767766895455,0.97678012,3250.5,3249.8,3.98071831]
[1767766896357,4.05298377,3250.8,3249.9,0.90363001]
[1767766896658,4.05298377,3250.8,3250.0,0.90363001]
[1767766898642,4.05000547,3250.8,3250.0,0.90363001]
[1767766898960,0.97678012,3250.7,3250.0,1.30170383]
[1767766899726,0.97678012,3250.7,3250.0,0.90363001]
[1767766900636,4.05311347,3250.7,3250.0,0.90363001]
[1767766902479,0.97678012,3250.7,3250.0,0.90363001]
[1767766903186,3.07618473,3250.8,3250.1,0.90463001]
[1767766903367,0.002,3250.4,3250.1,0.90463001]
[1767766904963,0.002,3250.4,3250.1,1.30279328]
[1767766905355,0.002,3250.4,3250.1,0.90463001]
[1767766908672,0.97678012,3251.0,3250.1,0.90463001]
[1767766908878,0.97678012,3251.0,3250.1,0.001]
[1767766910864,4.05285136,3250.9,3250.2,0.90363001]
[1767766911085,4.05285136,3250.9,3250.2,0.89963003]
[1767766911086,7.1289226,3250.9,3250.2,0.89963003]
[1767766911487,0.97678012,3250.8,3250.1,0.001]
[1767766911661,0.97678012,3250.8,3250.1,0.90463001]
[1767766913287,4.05303097,3250.8,3250.1,0.90463001]
[1767766913483,4.05303097,3250.8,3250.2,0.90363001]
[1767766913677,3.07625085,3250.8,3250.2,0.90363001]
[1767766915486,4.05287707,3250.9,3250.2,0.90363001]
[1767766915695,0.97678012,3250.9,3250.2,0.90363001]
[1767766915984,4.05257496,3251.2,3250.5,0.90363001]
[1767766916286,4.05257496,3251.2,3250.5,0.90163001]
[1767766916658,0.002,3250.7,3250.5,0.90163001]
[1767766916856,0.002,3251.0,3250.5,0.90163001]
[1767766917463,0.002,3251.0,3250.5,0.90363001]
[1767766918064,0.002,3251.0,3250.5,0.806]
[1767766918264,0.002,3251.0,3250.5,1.70963001]
[1767766918496,0.002,3251.0,3250.6,1.07766956]
[1767766918803,0.002,3251.0,3250.6,1.10843311]
[1767766919971,0.002,3251.0,3250.6,1.88366956]
[1767766920589,0.002,3251.0,3250.7,0.90363001]
[1767766921498,0.90379671,3251.0,3250.6,0.806]
[1767766921900,0.90179671,3250.9,3250.6,0.806]
[1767766922102,0.90179671,3250.9,3250.5,0.806]
[1767766923573,0.90179671,3250.9,3250.4,0.806]
[1767766924596,0.002,3251.0,3250.4,1.19426636]
[1767766924773,4.01170472,3251.0,3250.4,0.806]
[1767766924974,0.9336938,3250.9,3250.4,0.806]
[1767766927485,4.00976765,3250.9,3250.4,0.806]
[1767766928337,0.9336938,3250.9,3250.4,0.806]
[1767766928652,3.0753751,3251.7,3250.4,0.806]
[1767766928653,0.9336938,3252.5,3251.0,1.07485777]
[1767766928833,0.9336938,3252.5,3251.8,4.50377705]
[1767766929152,0.9336938,3252.3,3251.6,0.806]
[1767766929312,0.9336938,3252.3,3251.6,3.88137785]
[1767766929709,0.9336938,3252.3,3251.6,0.806]
[1767766930826,0.9336938,3252.3,3251.7,0.806]
[1767766933748,0.9336938,3252.3,3251.6,0.99482083]
[1767766933749,4.00844341,3252.3,3251.6,0.99482083]
[1767766933955,0.9336938,3252.2,3251.6,1.80082083]
[1767766934155,0.9336938,3252.2,3251.6,0.99482083]
[1767766934355,3.47559395,3252.3,3251.6,0.99482083]
[1767766934530,0.9336938,3252.2,3251.6,0.99482083]
[1767766934731,0.9336938,3252.2,3251.5,0.806]
[1767766935325,0.9336938,3252.2,3251.5,1.29671542]
[1767766935528,0.9336938,3252.2,3251.5,5.36703607]
[1767766935957,0.9336938,3252.5,3251.6,0.99482083]
[1767766937366,0.9336938,3252.3,3251.6,0.99482083]
[1767766938039,0.9336938,3252.3,3251.6,4.07021415]
[1767766938373,0.9336938,3252.3,3251.6,1.79307521]
[1767766938737,0.9336938,3252.3,3251.6,0.79825438]
[1767766938939,0.9336938,3252.3,3251.5,0.806]
[1767766939955,0.9336938,3252.2,3251.5,1.80082083]
[1767766941461,0.9336938,3252.2,3251.5,0.99482083]
[1767766942036,0.002,3252.0,3251.5,0.99482083]
[1767766942237,0.002,3252.0,3251.6,1.02557492]
[1767766943174,0.002,3252.3,3251.7,0.99482083]
[1767766943352,0.002,3252.3,3251.8,0.99482083]
[1767766945544,0.9336938,3252.8,3251.9,0.99482083]
[1767766945865,0.9336938,3252.7,3251.9,0.99482083]
[1767766946037,4.00810007,3252.7,3252.0,0.93798178]
[1767766946368,4.00810007,3252.7,3252.0,1.93280261]
[1767766946568,0.9336938,3252.7,3252.0,1.93280261]
[1767766947469,4.00809851,3252.7,3252.0,1.93280261]
[1767766947965,0.9336938,3252.7,3252.0,1.93280261]
[1767766948270,0.9336938,3252.7,3252.1,0.99482083]
[1767766949437,4.00807695,3252.7,3252.1,0.99482083]
[1767766949661,3.07438315,3252.7,3252.1,0.99482083]
[1767766950271,0.9336938,3252.8,3251.9,0.99482083]
[1767766950570,0.9336938,3252.7,3251.8,0.806]
[1767766950951,0.9336938,3252.7,3251.8,1.80082083]
[1767766952342,0.93432467,3252.5,3251.8,1.80082083]
[1767766955239,3.0744635,3252.6,3251.9,0.98440009]
[1767766955439,0.93432467,3252.7,3252.0,0.98440009]
[1767766955440,4.00873178,3252.7,3252.0,0.98440009]
[1767766955642,0.002,3252.4,3252.0,0.98440009]
[1767766957273,0.002,3252.4,3252.1,0.98440009]
[1767766957575,0.002,3252.4,3252.1,1.01514945]
[1767766957746,0.93432467,3252.6,3252.1,0.03074936]
[1767766957947,0.93432467,3252.6,3252.0,3.07501278]
[1767766958255,0.93432467,3252.6,3252.1,0.3592326]
[1767766958569,0.93432467,3252.6,3252.2,0.03074841]
[1767766959065,0.93432467,3252.6,3252.0,3.0750255]
[1767766960275,0.93432467,3252.6,3252.1,3.07493139]
[1767766960677,0.93432467,3252.6,3252.0,3.07499708]
[1767766960875,0.93432467,3252.6,3252.1,0.31057483]
[1767766961378,0.93432467,3252.6,3252.1,3.38547683]
[1767766962762,0.93432467,3252.6,3252.1,0.31057483]
[1767766963077,0.002,3252.7,3252.2,0.98440009]
[1767766963878,0.002,3252.7,3252.3,0.98440009]
[1767766964072,0.002,3252.7,3252.4,1.39032246]
[1767766964880,0.002,3252.7,3252.5,0.98440009]
[1767766965577,0.93432467,3253.3,3252.0,0.98440009]
[1767766965802,0.93432467,3253.3,3252.4,3.07459489]
[1767766967054,0.93432467,3253.3,3252.4,3.07462507]
[1767766967254,0.93432467,3253.3,3252.5,0.38806251]
[1767766967454,4.00822071,3253.3,3252.5,0.38806251]
[1767766967665,0.93432467,3253.2,3252.5,0.38806251]
[1767766967981,0.93432467,3253.2,3252.3,0.806]
[1767766968474,0.93432467,3253.2,3252.1,3.07490209]
[1767766968675,0.93432467,3253.2,3252.1,0.806]
[1767766969052,0.93432467,3253.2,3252.1,1.79040009]
[1767766969259,0.93432467,3253.2,3252.2,3.07483051]
[1767766969454,0.93432467,3253.2,3252.3,0.48652306]
[1767766969676,0.93432467,3253.0,3252.3,0.48652306]
[1767766969878,0.93632467,3253.0,3252.3,0.48652306]
[1767766970274,0.002,3253.0,3252.4,0.98440009]
[1767766970673,0.002,3253.0,3252.6,0.98440009]
[1767766980424,0.97970418,3253.0,3252.3,0.806]
[1767766980733,0.97970418,3253.0,3252.2,0.806]
[1767766980927,0.97970418,3253.0,3252.1,0.001]
[1767766981220,0.97770418,3252.8,3252.1,0.001]
[1767766981389,0.97770418,3252.7,3252.1,0.001]
[1767766982841,0.97770418,3252.7,3251.8,0.001]
[1767766983347,0.91510048,3252.5,3251.8,0.001]
[1767766984414,0.91510048,3252.5,3251.8,0.97850182]
[1767766986001,3.98968082,3252.5,3251.8,0.97850182]
[1767766986203,0.91510048,3252.5,3251.8,0.97850182]
[1767766986516,0.91510048,3252.5,3251.8,1.156952]
[1767766988220,0.91510048,3252.5,3251.8,4.23215471]
[1767766988593,0.002,3252.7,3251.9,1.00825307]
[1767766988815,0.91710048,3252.7,3251.9,1.00825307]
[1767766989128,3.9914741,3252.7,3251.9,0.97750182]
[1767766989292,0.002,3252.7,3252.0,1.00825212]
[1767766989488,0.002,3252.7,3252.1,1.00825118]
[1767766991439,0.002,3252.7,3252.1,1.78350182]
[1767766993537,0.91710048,3252.7,3252.1,1.78350182]
[1767766994930,0.002,3252.7,3252.1,1.78350182]
[1767766995129,0.002,3252.7,3252.2,0.17835018]
[1767766996239,0.002,3252.7,3252.2,1.155852]
[1767766997100,0.002,3252.4,3252.2,1.155852]
[1767766998137,0.91710048,3252.7,3252.2,0.17835018]
[1767766998341,0.91710048,3252.7,3252.1,0.807]
[1767766998633,0.002,3252.7,3252.2,0.97750182]
[1767766999606,0.002,3252.7,3252.3,0.03074747]
[1767766999803,0.002,3252.7,3252.2,0.97750182]
[1767767000938,0.91710048,3252.7,3252.1,0.807]
[1767767001135,0.002,3252.7,3252.1,1.78450182]
[1767767001307,0.002,3252.7,3252.2,0.97750182]
[1767767001726,0.002,3252.7,3252.2,1.00825023]
[1767767003027,0.002,3252.7,3252.2,1.78350182]
[1767767004057,0.002,3252.7,3252.2,0.806]
[1767767004758,0.91710048,3252.7,3252.1,0.807]
[1767767005465,0.91710048,3252.7,3252.1,0.98545018]
[1767767006653,3.99148932,3252.7,3252.1,0.98545018]
[1767767007969,0.91710048,3252.7,3252.1,0.98545018]
[1767767008468,0.91710048,3252.7,3252.1,0.17945018]
[1767767008669,0.002,3252.7,3252.1,1.156952]
[1767767009975,0.002,3252.7,3252.4,0.001]
[1767767023722,0.98140923,3252.9,3252.4,0.001]
[1767767024177,0.98140923,3252.9,3252.5,0.44984503]
[1767767024378,0.98140923,3252.9,3252.4,0.001]
[1767767024798,0.98140923,3252.9,3252.5,0.806]
[1767767025307,0.002,3253.0,3252.5,1.73562394]
[1767767025904,0.002,3253.0,3252.6,0.92962394]
[1767767031019,0.98340923,3253.0,3252.5,0.806]
[1767767031335,0.98340923,3253.0,3252.6,0.38816379]
[1767767031492,0.98340923,3253.0,3252.5,0.806]
[1767767032526,0.002,3253.0,3252.6,0.92962394]
[1767767033043,0.98140923,3252.9,3252.4,0.001]
[1767767034628,0.98140923,3252.9,3252.7,0.001]
[1767767038835,0.002,3253.0,3252.7,0.001]
[1767767041149,0.98340923,3253.0,3252.7,0.001]
[1767767042018,0.002,3253.0,3252.7,0.001]
[1767767042449,0.95454756,3253.0,3252.7,0.001]
[1767767042663,4.02863313,3253.0,3252.7,0.001]
[1767767044742,0.9532769,3252.9,3252.7,0.001]
[1767767046254,0.002,3253.0,3252.7,0.001]
[1767767047257,0.9552769,3253.0,3252.7,0.001]
[1767767049666,0.9532769,3252.9,3252.7,0.001]
[1767767051765,0.9532769,3252.8,3252.7,0.001]
[1767767057179,0.71034086,3252.9,3252.7,0.001]
[1767767057489,3.78453049,3252.9,3252.7,0.001]
[1767767059646,0.71034086,3252.9,3252.7,0.001]
[1767767059847,3.07610806,3253.0,3252.7,0.001]
[1767767060370,0.002,3253.0,3252.7,0.001]
[1767767074505,3.07608545,3253.0,3252.7,0.001]
[1767767075987,0.93511605,3252.9,3252.7,0.001]
[1767767076905,4.00932746,3252.9,3252.7,0.001]
[1767767077501,0.93511605,3252.9,3252.7,0.001]
[1767767077702,3.07612559,3253.0,3252.7,0.001]
[1767767084130,0.002,3253.0,3252.7,0.001]
[1767767087542,1.64561974,3253.0,3252.7,0.001]
[1767767087840,3.07417996,3252.9,3252.7,0.001]
[1767767088034,0.93511605,3252.8,3252.4,0.001]
[1767767088229,3.07417996,3252.9,3252.4,0.001]
[1767767088436,0.93511605,3252.8,3252.4,0.001]
[1767767090720,4.71972747,3253.0,3252.4,0.001]
[1767767090916,4.71972747,3253.0,3252.4,0.9808204]
[1767767091245,0.93511605,3252.9,3252.4,0.001]
[1767767091433,3.78461142,3253.0,3252.4,0.001]
[1767767091813,3.78461142,3253.0,3252.4,0.9808204]
[1767767092641,0.93511605,3252.9,3252.4,0.001]
[1767767093147,3.78461142,3253.0,3252.4,0.001]
[1767767094038,3.78461142,3253.0,3252.4,0.9808204]
[1767767095265,3.78461142,3253.0,3252.7,0.001]
[1767767095564,0.47197275,3252.9,3252.7,0.001]
[1767767096563,3.54620318,3252.9,3252.7,0.001]
[1767767097570,0.47197275,3252.9,3252.7,0.001]
[1767767097864,3.07418291,3252.9,3252.7,0.001]
[1767767100370,3.07608545,3253.0,3252.7,0.001]
[1767767105484,0.002,3253.0,3252.7,0.001]
[1767767113578,0.002,3253.0,3252.7,0.94016193]
[1767767114398,3.07152134,3253.5,3252.9,0.93916193]
[1767767114603,3.0734241,3253.7,3252.9,0.93716194]
[1767767114785,3.0734241,3253.7,3252.9,1.11157813]
[1767767115315,7.13410355,3253.9,3252.9,1.11157813]
[1767767115808,1.27507099,3253.8,3252.9,1.11157813]
[1767767115977,0.98762513,3253.7,3252.9,1.11157813]
[1767767116189,0.98762513,3253.7,3252.9,1.91757813]
[1767767116627,0.98762513,3253.7,3252.9,1.11157813]
[1767767116826,0.98762513,3253.6,3252.9,0.93716194]
[1767767117202,3.07361303,3253.5,3252.9,0.93716194]
[1767767119399,0.002,3253.4,3252.9,0.93716194]
[1767767120994,0.002,3253.4,3252.9,0.93516195]
[1767767123860,0.98962513,3253.4,3252.8,0.806]
[1767767124228,3.07572983,3253.4,3252.8,1.74516193]
[1767767124428,3.07572983,3253.4,3252.8,1.91977812]
[1767767124768,3.07572983,3253.4,3252.9,0.93916193]
[1767767125563,0.002,3253.4,3252.8,0.98061619]
[1767767125761,0.98962513,3253.4,3252.8,0.98061619]
[1767767126058,0.98962513,3253.4,3252.7,0.001]
[1767767126259,0.98962513,3253.4,3252.7,0.807]
[1767767126470,0.98962513,3253.4,3252.7,0.001]
[1767767126645,0.98962513,3253.4,3252.7,0.807]
[1767767127028,0.98962513,3253.4,3252.7,0.001]
[1767767127230,0.98762513,3253.3,3252.7,0.001]
[1767767127527,0.98762513,3253.3,3252.7,0.94016193]
[1767767127739,3.07389647,3253.2,3252.7,0.94016193]
[1767767128784,3.07389647,3253.2,3252.7,0.93816194]
[1767767129381,4.06146171,3253.3,3252.7,0.93816194]
[1767767129676,4.8465377,3253.3,3252.7,0.93816194]
[1767767130460,4.06146171,3253.3,3252.7,0.93816194]
[1767767132482,0.002,3253.1,3252.7,0.93816194]
[1767767135888,0.96813996,3253.1,3252.6,0.806]
[1767767136467,4.04185427,3253.4,3252.6,4.80654869]
[1767767136656,0.96613996,3253.3,3252.7,0.93017313]
[1767767139302,3.07573914,3253.4,3252.8,0.92609884]
[1767767141502,0.002,3253.4,3252.8,0.92609884]
[1767767142011,0.96813996,3253.4,3252.4,0.001]
[1767767142200,0.96813996,3253.4,3252.6,0.806]
[1767767142402,0.96613996,3253.2,3252.6,0.806]
[1767767142575,0.96613996,3253.2,3252.5,0.806]
[1767767143474,4.04013092,3253.1,3252.5,0.806]
[1767767144287,4.04013092,3253.1,3252.8,0.001]
[1767767144610,3.07393701,3253.2,3252.8,0.001]
[1767767145018,3.78535439,3253.3,3252.8,0.001]
[1767767145581,4.04188599,3253.4,3252.8,0.001]
[1767767146415,0.96613996,3253.3,3252.8,0.001]
[1767767147568,0.96613996,3253.1,3252.8,0.001]
[1767767149221,3.07389647,3253.2,3252.8,0.001]
[1767767149854,4.04003643,3253.2,3252.8,0.001]
[1767767150016,4.75162192,3253.2,3252.8,0.001]
[1767767156477,4.75162192,3253.2,3253.1,0.001]
[1767767161781,3.78548196,3253.2,3253.1,0.001]
[1767767163385,0.71158549,3253.2,3253.1,0.001]
[1767767163586,3.07382545,3253.3,3253.1,0.001]
[1767767165407,4.02411321,3253.3,3253.1,0.001]
[1767767169118,0.002,3253.4,3253.1,0.001]
[1767767171608,7.09970276,3253.4,3253.1,0.001]
[1767767174512,0.95028776,3253.3,3253.1,0.001]
[1767767174708,0.95028776,3253.2,3253.1,0.001]
[1767767174882,0.70997028,3253.3,3253.1,0.001]
[1767767175411,3.07389647,3253.2,3253.1,0.001]
[1767767176809,3.78380391,3253.3,3253.1,0.001]
[1767767177710,3.07383363,3253.3,3253.1,0.001]
[1767767179518,6.1494219,3253.4,3253.1,0.001]
[1767767183841,0.95028776,3253.3,3253.1,0.001]
[1767767185805,4.02418423,3253.2,3253.1,0.001]
[1767767188328,0.95228776,3253.4,3253.1,0.001]
[1767767192231,3.07380198,3253.3,3253.1,0.001]
[1767767195032,0.002,3253.4,3253.1,0.001]
[1767767195327,0.61492261,3253.3,3253.1,0.001]
[1767767196027,1.53977601,3253.3,3253.1,0.001]
[1767767197029,3.07389647,3253.2,3253.1,0.001]
[1767767199731,0.002,3253.4,3253.1,0.001]
[1767767209837,0.9268534,3253.4,3253.1,0.001]
[1767767210042,0.9248534,3253.3,3253.1,0.001]
[1767767211541,3.0738158,3253.3,3253.1,0.001]
[1767767213116,3.0757389,3253.4,3253.1,0.001]
[1767767213117,0.002,3253.4,3253.1,0.001]
[1767767218356,0.9268534,3253.4,3253.1,0.001]
[1767767219632,0.9268534,3253.4,3252.8,0.001]
[1767767219827,1.63226135,3253.3,3252.8,0.001]
[1767767220055,6.14779294,3253.2,3252.8,0.001]
[1767767220761,3.07389647,3253.2,3252.8,0.001]
[1767767221553,6.14779294,3253.2,3252.8,0.001]
[1767767222959,7.0840302,3253.2,3252.8,0.001]
[1767767223165,1.71538108,3253.1,3252.4,0.93255379]
[1767767223364,0.93623726,3253.0,3252.4,0.001]
[1767767224065,0.93623726,3252.8,3252.4,0.001]
[1767767224225,3.07417996,3252.9,3252.4,0.001]
[1767767225441,4.01041722,3252.9,3252.4,0.001]
[1767767228345,4.01041722,3252.9,3252.7,0.001]
[1767767228676,4.79678303,3252.9,3252.4,0.001]